[Event "NY Presidents Day GM-A 2024"]
[Site "New York"]
[Date "2024.02.19"]
[Round "7.1"]
[White "Novik, Maxim"]
[Black "Lu, Maximillian"]
[Result "1/2-1/2"]
[ECO "B23"]
[WhiteElo "2399"]
[BlackElo "2371"]
[Annotator "TA"]
[PlyCount "152"]
[EventDate "2024.02.14"]
[EventType "tourn"]
[EventCountry "USA"]
[SourceTitle "playchess.com"]
[Source "ChessBase"]
[SourceQuality "1"]
[TimeControl "5400+30"]

{[%evp 59,152,60,56,60,64,52,70,84,85,75,87,68,93,92,91,90,133,126,149,145,135,130,114,70,64,79,81,79,77,77,80,67,102,80,80,71,80,80,79,79,79,79,79,79,83,82,83,79,79,79,83,79,79,79,79,91,686,685,677,671,658,656,650,636,592,78,76,24,24,12,12,0,0,0,0,0,0,0,0,0,0,0,0,0,67,0,0,0,0,0,0,0,0,0,0]} 1. e4 {[%emt 0:00:02]} c5 {[%emt 0:01:55]} 2. Nc3 {[%emt 0:01:03]} d6 {[%emt 0:00:51]} 3. Nge2 {[%emt 0:01:55]} a6 {[%emt 0:01:59]} 4. g3 {[%emt 0:00:33]} Nc6 {[%emt 0:00:19]} 5. Bg2 {[%emt 0:00:40]} g6 {[%emt 0:00:02]} 6. d4 {[%emt 0:02:04]} cxd4 {[%emt 0:00:47]} 7. Nxd4 {[%emt 0:00:06]} Bg7 {[%emt 0:00:24]} 8. Be3 {[%emt 0:00:29]} Ne5 {[%emt 0:06:42]} 9. O-O {[%emt 0:03:12]} Nf6 {[%emt 0:05:38]} 10. h3 {[%emt 0:00:52]} Nc4 {[%emt 0:02:36]} 11. Bc1 {[%emt 0:02:07]} Qb6 {[%emt 0:01:53]} 12. Nb3 {[%emt 0:17:00]} O-O {[%emt 0:01:17]} 13. Qe2 {[%emt 0:00:50]} Qc7 {[%emt 0:01:13]} 14. Nd2 {[%emt 0:07:23]} Be6 {[%emt 0:10:23]} 15. Nd5 {[%emt 0:02:00]} Nxd5 {[%emt 0:09:22]} 16. exd5 {[%emt 0:01:05]} Nxd2 {[%emt 0:00:01]} 17. Qxd2 {[%emt 0:03:56]} Bd7 {[%emt 0:03:37]} 18. Re1 {[%emt 0:01:55]} Rfe8 {[%emt 0:00:46]} 19. c3 {[%emt 0:00:29]} b5 {[%emt 0:00:24]} 20. Qd3 {[%emt 0:02:55]} Rab8 {[%emt 0:06:53]} 21. a3 {[%emt 0:04:42]} a5 {[%emt 0:07:41]} 22. Be3 {[%emt 0:00:45]} Bf5 {[%emt 0:07:58]} 23. Qd2 {[%emt 0:03:02]} Qc4 {[%emt 0:00:03]} 24. g4 {[%emt 0:04:57]} Bd7 {[%emt 0:00:35]} 25. Bg5 {[%emt 0:01:58]} b4 {[%emt 0:11:33]} 26. cxb4 {[%emt 0:00:21]} axb4 {[%emt 0:00:02]} 27. Re4 {[%emt 0:03:40]} Qb3 {[%emt 0:01:38]} 28. Rxb4 {[%emt 0:00:25]} Rxb4 {[%emt 0:00:44]} 29. axb4 {[%emt 0:00:16]} h6 {[%emt 0:05:17]} 30. Bxh6 {[%emt 0:03:18]} Bxh6 {[%emt 0:00:05]} 31. Qxh6 {[%emt 0:00:05]} Qxb4 {[%emt 0:01:05]} 32. Ra7 {[%emt 0:04:26]} Qe1+ {[%emt 0:03:00]} 33. Kh2 $1 {[%emt 0:00:03]} Bb5 {[%emt 0:00:01]} (33... Qxf2 $2 {loses.} 34. Rxd7 Qxb2 35. Qe3 $18) 34. Qf4 {[%emt 0:07:59]} Bd3 {[%emt 0:03:55]} 35. Ra3 {[%emt 0:01:35]} Qe2 {[%emt 0:01:11]} 36. Qd4 {[%emt 0:02:20]} Bb5 {[%emt 0:00:02]} 37. Kg3 {[%emt 0:00:47]} g5 {[%emt 0:02:52]} 38. Re3 {[%emt 0:02:40]} Qc4 {[%emt 0:00:19]} 39. Qxc4 {[%emt 0:01:37]} Bxc4 {[%emt 0:00:01]} 40. b3 {[%emt 0:02:11]} Ba6 {[%emt 0:00:39]} 41. h4 {[%emt 0:01:28]} gxh4+ {[%emt 0:00:05]} 42. Kxh4 {[%emt 0:00:02]} Kf8 {[%emt 0:03:56]} 43. b4 $1 {[%emt 0:00:55]} Rb8 {[%emt 0:00:19] [#]} 44. Rb3 $1 {[%emt 0:00:16]} Bc4 {[%emt 0:00:13]} 45. Rb2 {[%emt 0:01:05]} Rb5 {[%emt 0:00:01]} 46. f4 {[%emt 0:01:09]} Kg7 {[%emt 0:02:25]} 47. g5 {[%emt 0:02:37]} f6 {[%emt 0:00:43]} 48. Be4 {[%emt 0:04:08]} fxg5+ {[%emt 0:00:17]} 49. fxg5 {[%emt 0:00:02]} e6 {[%emt 0:00:45]} 50. dxe6 {[%emt 0:00:35]} Bxe6 {[%emt 0:00:13]} 51. Bc6 {[%emt 0:00:32]} Rb6 {[%emt 0:00:47]} 52. b5 {[%emt 0:00:25]} Bc4 {[%emt 0:00:07]} 53. Kg4 {[%emt 0:01:08]} d5 {[%emt 0:00:16]} 54. Rb4 {[%emt 0:00:44]} Be2+ {[%emt 0:00:54]} 55. Kf4 {[%emt 0:00:02]} d4 {[%emt 0:00:08]} 56. Rb2 {[%emt 0:03:15]} ({Much worse is} 56. Rxd4 Bxb5 57. Rd7+ Kf8 $11) 56... d3 {[%emt 0:01:00]} 57. Ke3 {[%emt 0:00:18]} Bf1 $2 {[%emt 0:00:35][%mdl 8192]} (57... Kg6 $16) 58. Rf2 $18 {[%emt 0:01:29]} Be2 {[%emt 0:00:01]} 59. Rf5 {[%emt 0:00:27]} Rb8 {[%emt 0:00:19]} 60. Rc5 {[%emt 0:00:28]} Bf1 {[%emt 0:00:20]} 61. Kd2 {[%emt 0:00:58]} Rh8 {[%emt 0:01:17]} 62. Bf3 $2 {[%emt 0:00:08]} (62. b6 $18) 62... Rh2+ $16 {[%emt 0:00:14] [#]} 63. Ke3 {[%emt 0:00:03]} (63. Ke1 $1 $16 {[%cal Re1f1]} Be2 64. Be4 d2+ 65. Kxd2 Bxb5+ 66. Ke3 Rh3+ 67. Kf4) 63... Rb2 $11 {[%emt 0:00:30]} 64. Rc7+ {[%emt 0:01:01]} Kg6 {[%emt 0:00:48]} 65. Kf4 {[%emt 0:01:13]} Bg2 $1 {[%emt 0:00:23]} 66. Rc6+ {[%emt 0:00:31]} Kg7 {[%emt 0:00:03]} 67. Rc7+ {[%emt 0:00:30]} Kg6 {[%emt 0:00:03]} 68. Rc6+ {[%emt 0:00:34]} Kg7 {[%emt 0:00:01]} 69. Bxg2 {[%emt 0:00:11]} Rxg2 {[%emt 0:00:03]} 70. Rc7+ {[%emt 0:00:43]} Kg6 {[%emt 0:00:04]} 71. Rc6+ {[%emt 0:00:03]} (71. Rc5 $11) 71... Kg7 $14 {[%emt 0:03:27]} 72. Kf5 {[%emt 0:01:06]} ({Only move:} 72. b6 $14) 72... Rf2+ $11 {[%emt 0:00:00]} 73. Ke4 {[%emt 0:00:12]} Rb2 {[%emt 0:00:00]} (73... d2 $5 74. Rd6 $8 Re2+ 75. Kf4 Kf7 $11) 74. b6 {[%emt 0:00:40]} d2 {[%emt 0:00:00]} 75. Rd6 $1 {[%emt 0:00:03]} Rxb6 {[%emt 0:00:00]} 76. Rxd2 {[%emt 0:00:02]} Kg6 {[%emt 0:00:00]} 1/2-1/2

[Event "NY Presidents Day GM-A 2024"]
[Site "New York"]
[Date "2024.02.19"]
[Round "7.2"]
[White "Yu, Jiangwei"]
[Black "Griffith, Kyron"]
[Result "1-0"]
[ECO "E42"]
[WhiteElo "2357"]
[BlackElo "2367"]
[Annotator "TA"]
[PlyCount "125"]
[EventDate "2024.02.14"]
[EventType "tourn"]
[EventCountry "USA"]
[SourceTitle "playchess.com"]
[Source "ChessBase"]
[SourceQuality "1"]
[TimeControl "5400+30"]

{[%evp 26,125,12,-42,-22,-33,-33,-15,-10,-62,-45,-50,-38,-47,-49,-47,-39,-43,-39,-49,-28,-28,-8,-24,-17,-46,-30,-27,-25,-24,-21,-24,-18,-25,-22,-23,-22,-20,-20,-33,-33,-33,-33,-33,-33,-40,-37,-37,-37,-63,-44,-270,-56,-141,-51,-64,-33,-33,8,9,8,8,8,0,0,0,0,0,0,0,0,0,0,0,202,208,208,200,208,200,5501,5418,29965,29967,29971,29969,29972,29973,29973,29974,29974,29975,29975,29976,29976,29977,29978,29979,29980,29981,29982,29983]} 1. d4 {[%emt 0:09:00]} Nf6 {[%emt 0:00:06]} 2. c4 {[%emt 0:00:05]} e6 {[%emt 0:00:05]} 3. Nc3 {[%emt 0:00:17]} Bb4 {[%emt 0:00:06]} 4. e3 {[%emt 0:00:04]} c5 {[%emt 0:00:15]} 5. Nge2 {[%emt 0:02:56]} d5 {[%emt 0:00:14]} 6. a3 {[%emt 0:05:35]} Ba5 {[%emt 0:00:28] is recently more successful than 6...Bxc3+.} 7. dxc5 {[%emt 0:10:25]} dxc4 {[%emt 0:00:43] E42: Nimzo-Indian: Rubinstein: 4...c5 5 Ne2.} 8. Qxd8+ {[%emt 0:06:18]} Kxd8 {[%emt 0:00:09]} 9. Bd2 {[%emt 0:01:21]} Nbd7 {[%emt 0:00:15] 9...e5 is not played anymore.} 10. Nc1 {[%emt 0:07:46]} Nd5 $146 {[%emt 0:02:15]} ({Predecessor:} 10... Nxc5 11. Bxc4 Bb6 12. f3 Bd7 13. b4 Na4 14. Nxa4 Bxa4 15. Nd3 Ke7 16. Nb2 Bd7 {½-½ Flear,G (2425)-Lagunow,A (2360) EU-chT Seniors 50 2022 (4.4)}) 11. N1a2 {[%emt 0:06:22]} Nxc5 {[%emt 0:05:27]} 12. Bxc4 {[%emt 0:00:16]} Nb6 {[%emt 0:01:05]} 13. Be2 {[%emt 0:06:55]} Nb3 {[%emt 0:00:33]} 14. Rb1 {[%emt 0:04:22]} (14. Rd1 $11) 14... Bd7 {[%emt 0:04:19]} 15. Ne4 {[%emt 0:01:49]} Nxd2 {[%emt 0:08:32]} 16. Nxd2 {[%emt 0:00:01]} Na4 {[%emt 0:00:20]} 17. Nb4 {[%emt 0:11:00]} (17. b3 $11 Nc3 18. Nxc3 Bxc3 19. Bd3) 17... Rc8 $15 {[%emt 0:03:26]} 18. Nc4 {[%emt 0:01:44]} Bc7 {[%emt 0:02:21]} 19. b3 {[%emt 0:03:09]} Nc3 {[%emt 0:01:01]} 20. Rc1 {[%emt 0:00:05]} Nxe2 {[%emt 0:00:31]} 21. Kxe2 {[%emt 0:00:02]} Ke7 {[%emt 0:04:43]} 22. Nd3 {[%emt 0:01:23]} Rhd8 {[%emt 0:01:58]} 23. Rc2 {[%emt 0:02:23]} Bc6 {[%emt 0:07:26]} 24. f3 {[%emt 0:00:19]} f6 {[%emt 0:06:20]} 25. e4 {[%emt 0:04:34]} g5 {[%emt 0:03:24]} 26. Rhc1 {[%emt 0:03:47]} h5 {[%emt 0:05:59]} ({But not} 26... Bxh2 $6 27. Rh1 Bb8 28. Rxh7+ Kf8 29. Nb4 $16) 27. h3 {[%emt 0:01:13]} Rg8 {[%emt 0:00:55]} 28. Nb4 {[%emt 0:01:01]} Bd7 {[%emt 0:00:33]} 29. Ne3 {[%emt 0:00:52]} Bd6 {[%emt 0:02:05]} 30. Rxc8 {[%emt 0:00:29]} Rxc8 {[%emt 0:01:32]} 31. Rxc8 {[%emt 0:00:17]} Bxc8 {[%emt 0:00:02]} 32. g4 {[%emt 0:01:28]} h4 {[%emt 0:00:17]} 33. Nc4 {[%emt 0:00:30]} Bc7 {[%emt 0:00:56]} 34. a4 {[%emt 0:00:36]} Bd7 {[%emt 0:00:29]} 35. Nd3 {[%emt 0:00:55]} b5 {[%emt 0:02:44]} 36. axb5 $1 {[%emt 0:00:56]} Bxb5 {[%emt 0:00:02]} 37. Ncb2 {[%emt 0:01:45]} Be5 {[%emt 0:00:28]} 38. Na4 $2 {[%emt 0:02:53]} (38. Nc4 $15) 38... Kd6 $2 {[%emt 0:01:02]} (38... Bd4 $19 {...a5 would now be deadly.} 39. Kd2 Kd6) 39. Ke3 {[%emt 0:00:59]} (39. Nac5 $1 $15) 39... Bh2 {[%emt 0:00:17]} ({Black should try} 39... Bxd3 $1 $17 40. Kxd3 Bh2) 40. Nc3 {[%emt 0:00:17]} Bg1+ {[%emt 0:02:19]} 41. Kd2 {[%emt 0:00:16]} Ba6 {[%emt 0:03:15]} 42. e5+ $1 {[%emt 0:00:23]} fxe5 {[%emt 0:04:27]} 43. Ne4+ {[%emt 0:00:03]} Ke7 {[%emt 0:00:18]} 44. Nxg5 {[%emt 0:00:16]} Bd4 {[%emt 0:01:15]} 45. Ne4 {[%emt 0:01:51]} Bb5 {[%emt 0:02:08]} 46. Nc3 {[%emt 0:00:50]} Bc6 {[%emt 0:00:38]} 47. Ne4 {[%emt 0:00:07]} a5 {[%emt 0:03:57]} 48. Kd1 {[%emt 0:01:17]} Be8 {[%emt 0:02:27]} 49. Ne1 {[%emt 0:00:40]} a4 $2 {[%emt 0:10:13]} (49... Bc6 $11) 50. bxa4 $18 {[%emt 0:00:02]} Bxa4+ {[%emt 0:00:04]} 51. Kd2 {[%emt 0:00:13]} Bc6 {[%emt 0:00:25]} 52. Ng2 {[%emt 0:00:51]} Bxe4 $2 {[%emt 0:00:03]} (52... Bb5 53. Nxh4 Bf1) 53. fxe4 $18 {[%emt 0:00:04]} Bf2 {[%emt 0:00:04]} 54. Ke2 {[%emt 0:00:12]} Bg3 {[%emt 0:00:02]} 55. g5 $1 {[%emt 0:00:21]} Bf4 {[%emt 0:02:15]} 56. Nxf4 $1 {[%emt 0:00:04]} ({Weaker is} 56. Nxh4 Bxg5 57. Nf3 Bf4 $16) 56... exf4 {[%emt 0:00:02] [#]} 57. e5 $1 {[%emt 0:00:05]} Kf7 {[%emt 0:00:21]} 58. Kf3 {[%emt 0:00:04]} Kg6 {[%emt 0:00:20]} 59. Kxf4 {[%emt 0:00:10]} Kh5 {[%emt 0:00:09]} 60. g6 $1 {[%emt 0:00:03]} Kh6 {[%emt 0:01:28] [#]} 61. g7 $1 {[%emt 0:00:59]} Kxg7 {[%emt 0:00:04]} 62. Kg5 {[%emt 0:00:03]} Kf7 {[%emt 0:00:08]} 63. Kh6 {[%emt 0:00:12]} 1-0

[Event "NY Presidents Day GM-A 2024"]
[Site "New York"]
[Date "2024.02.19"]
[Round "7.3"]
[White "Rorrer, Grayson"]
[Black "Paragua, Mark"]
[Result "0-1"]
[ECO "B95"]
[WhiteElo "2396"]
[BlackElo "2448"]
[Annotator "TA"]
[PlyCount "78"]
[EventDate "2024.02.14"]
[EventType "tourn"]
[EventCountry "USA"]
[SourceTitle "playchess.com"]
[Source "ChessBase"]
[SourceQuality "1"]
[TimeControl "5400+30"]

{[%evp 16,78,0,-11,14,-25,0,-6,-9,-180,-174,-168,-175,-170,-50,-31,-36,-62,-62,-44,-48,-33,0,-93,-89,-97,-85,-130,-78,-78,-20,-52,-43,-37,-31,-54,0,-319,-308,-303,-295,-297,-301,-284,-219,-284,0,-325,-320,-502,-502,-624,-437,-625,-597,-650,-646,-645,-636,-637,-636,-643,-643,-791,-784]} 1. e4 {[%emt 0:00:04]} c5 {[%emt 0:00:11]} 2. Nf3 {[%emt 0:00:07]} d6 {[%emt 0:00:09]} 3. d4 {[%emt 0:00:05]} cxd4 {[%emt 0:00:04]} 4. Nxd4 {[%emt 0:00:06]} Nf6 {[%emt 0:00:08]} 5. Nc3 {[%emt 0:00:06]} a6 {[%emt 0:00:06]} 6. Bg5 {[%emt 0:00:06]} e6 {[%emt 0:00:40]} 7. Qf3 {[%emt 0:00:06]} Be7 {[%emt 0:02:04]} 8. O-O-O {[%emt 0:00:11]} Qc7 {[%emt 0:00:33]} 9. g4 {[%emt 0:00:18]} Nbd7 {[%emt 0:00:37]} 10. Qg3 {[%emt 0:03:47]} b5 {[%emt 0:01:24]} 11. Bxf6 {[%emt 0:06:24]} gxf6 {[%emt 0:03:17] The position is equal.} 12. Bxb5 $2 {[%emt 0:02:38]} axb5 $19 {[%emt 0:00:49]} 13. Ndxb5 {[%emt 0:00:07]} Qc5 {[%emt 0:03:36]} 14. Nxd6+ {[%emt 0:00:39]} Bxd6 {[%emt 0:00:13]} ({Black should try} 14... Kf8 $19 15. Nxc8 Qxc8) 15. Rxd6 $15 {[%emt 0:01:18]} Qe5 {[%emt 0:00:57]} 16. Rhd1 {[%emt 0:02:56]} Qxg3 {[%emt 0:08:36]} 17. hxg3 {[%emt 0:00:13]} Ke7 {[%emt 0:04:36]} 18. Rc6 {[%emt 0:01:09]} Rg8 {[%emt 0:02:13]} 19. f3 {[%emt 0:02:26] [#]} (19. b4 $11 {keeps the balance.}) 19... Ra7 $1 $17 {[%emt 0:02:48] ...Ne5 is the strong threat.} 20. Nb5 {[%emt 0:10:56]} Rxa2 {[%emt 0:04:40]} 21. Nd6 {[%emt 0:00:17] [#]} Ba6 {[%emt 0:09:37]} ({Better is} 21... Ra8 $1 {...Ne5 would now be deadly.} 22. f4 Ba6) 22. Rd4 {[%emt 0:07:44]} Ra1+ {[%emt 0:28:29]} (22... Be2 $5 23. b4 Ra1+ (23... Bxf3 24. Rc7 $11) 24. Kb2 Ra7 $17) 23. Kd2 {[%emt 0:00:09]} Ra8 {[%emt 0:00:55]} 24. f4 {[%emt 0:07:22] Prevents Ne5.} Rg1 {[%emt 0:03:04] And now ...Rg2+ would win.} 25. b4 {[%emt 0:01:45]} Rb1 {[%emt 0:06:54]} (25... Rxg3 26. b5 Rg2+ 27. Ke3 Bxb5 (27... e5 28. fxe5 Bxb5 29. exf6+ Nxf6 30. Nf5+ Kf8 31. Rxf6 $14) 28. Nxb5 $18) (25... Ne5 $15 26. Rc3 (26. fxe5 $2 fxe5 27. Rc7+ Kf8 $19) 26... Rf1 (26... Nxg4 27. b5 $11) 27. Rc7+ (27. fxe5 $2 fxe5 28. Rc7+ Kd8 $17) 27... Kf8 28. fxe5 fxe5) 26. Kc3 $2 {[%emt 0:04:31][%mdl 8192]} (26. g5 $11 {and White stays safe.}) 26... Be2 $19 {[%emt 0:02:49]} 27. Nc4 {[%emt 0:03:46] Against Ra3+} Bxc4 {[%emt 0:00:51]} ({Much less strong is} 27... Bxg4 28. Rc7 e5 29. Rd2) 28. Kxc4 {[%emt 0:01:02]} Rb8 {[%emt 0:01:03]} 29. c3 {[%emt 0:00:23]} Nb6+ {[%emt 0:02:11]} 30. Kc5 {[%emt 0:02:28]} Nd7+ {[%emt 0:05:12]} 31. Kc4 {[%emt 0:00:07]} Rb7 {[%emt 0:00:38]} 32. Ra6 {[%emt 0:05:16]} (32. Rd3 $142) 32... Rc7+ {[%emt 0:00:30] Black is clearly winning.} 33. Kb5 {[%emt 0:00:03]} Rc5+ {[%emt 0:00:52]} 34. Ka4 {[%emt 0:00:34]} Rxc3 {[%emt 0:01:08]} 35. Ra5 {[%emt 0:03:16]} e5 {[%emt 0:02:24]} 36. Rd2 {[%emt 0:00:55]} Rc4 {[%emt 0:00:17]} 37. Rb5 {[%emt 0:00:39]} Rxe4 {[%emt 0:00:28]} 38. g5 {[%emt 0:00:16]} fxg5 {[%emt 0:01:20]} 39. fxe5 {[%emt 0:00:34]} Nxe5 {[%emt 0:00:30] Weighted Error Value: White=0.50/Black=0.25 (precise) .  Loses game:     	White=2     	---        Mistake:       	White=2     	Black=3      Inaccurate:     	White=4     	Black=2      OK:         	White=6     	Black=11     Best:        	White=2     	Black=1      Strong:       	---       	Black=1} 0-1

[Event "NY Presidents Day GM-A 2024"]
[Site "New York"]
[Date "2024.02.19"]
[Round "7.4"]
[White "Kaliksteyn, Alexander"]
[Black "Eidelman, Gabriel"]
[Result "1/2-1/2"]
[ECO "A20"]
[WhiteElo "2363"]
[BlackElo "2343"]
[Annotator "TA"]
[PlyCount "30"]
[EventDate "2024.02.14"]
[EventType "tourn"]
[EventCountry "USA"]
[SourceTitle "playchess.com"]
[Source "ChessBase"]
[SourceQuality "1"]
[TimeControl "5400+30"]

{[%evp 15,30,0,-10,-11,-1,-35,-25,-34,-31,-37,-35,-32,-25,-27,-31,-29,-34]} 1. c4 {[%emt 0:08:24]} e5 {[%emt 0:00:05]} 2. g3 {[%emt 0:00:57]} c6 {[%emt 0:00:09]} 3. Nf3 {[%emt 0:00:58]} e4 {[%emt 0:00:23]} 4. Nd4 {[%emt 0:00:05]} d5 {[%emt 0:01:56]} 5. cxd5 {[%emt 0:00:38]} Qxd5 {[%emt 0:00:52]} 6. Nc2 {[%emt 0:01:08]} Nf6 {[%emt 0:01:23]} 7. Bg2 {[%emt 0:01:36]} Qh5 {[%emt 0:07:48]} 8. h3 {[%emt 0:03:36]} Qg6 {[%emt 0:04:15]} 9. Nc3 {[%emt 0:05:25]} Bd6 {[%emt 0:01:16]} 10. Ne3 {[%emt 0:15:52]} O-O {[%emt 0:00:45]} 11. d3 {[%emt 0:03:09]} exd3 {[%emt 0:00:36]} 12. Qxd3 {[%emt 0:00:17]} Qxd3 {[%emt 0:01:36]} 13. exd3 {[%emt 0:00:06]} Na6 {[%emt 0:03:02]} 14. O-O {[%emt 0:00:48]} Rd8 {[%emt 0:07:23]} 15. d4 {[%emt 0:01:40]} Nc7 {[%emt 0:06:42] Weighted Error Value: White=0.09 (flawless) /Black=0.03 (flawless) .  Inaccurate:     	White=1     	---        OK:         	---       	Black=2      Best:        	---       	Black=1} 1/2-1/2

[Event "NY Presidents Day GM-A 2024"]
[Site "New York"]
[Date "2024.02.19"]
[Round "7.5"]
[White "Mandizha, Farai"]
[Black "Lenderman, Aleksandr"]
[Result "1/2-1/2"]
[ECO "E08"]
[WhiteElo "2367"]
[BlackElo "2521"]
[Annotator "TA"]
[PlyCount "48"]
[EventDate "2024.02.14"]
[EventType "tourn"]
[EventCountry "USA"]
[SourceTitle "playchess.com"]
[Source "ChessBase"]
[SourceQuality "1"]
[TimeControl "5400+30"]

{[%evp 17,48,19,24,16,24,25,38,0,17,0,0,0,0,0,0,0,0,-17,-18,-44,-26,-29,-29,-29,-37,-24,-15,-31,0,0,0,0,13]} 1. d4 {[%emt 0:00:04]} Nf6 {[%emt 0:00:07]} 2. c4 {[%emt 0:00:22]} e6 {[%emt 0:00:06]} 3. Nf3 {[%emt 0:00:07]} d5 {[%emt 0:00:06]} 4. g3 {[%emt 0:02:30]} Bb4+ {[%emt 0:00:08]} 5. Bd2 {[%emt 0:00:59]} Be7 {[%emt 0:00:07]} 6. Bg2 {[%emt 0:01:37]} O-O {[%emt 0:00:09]} 7. O-O {[%emt 0:02:14]} c6 {[%emt 1:33:17]} 8. Qc2 {[%emt 0:02:11]} Nbd7 {[%emt 0:00:00]} 9. Bf4 {[%emt 0:01:42]} a5 {[%emt 0:00:00]} 10. Rd1 {[%emt 0:08:20]} a4 {[%emt 0:00:00]} 11. a3 {[%emt 0:02:30]} Qa5 {[%emt 0:00:00]} 12. Bg5 {[%emt 0:03:17] White is slightly better.} h6 {[%emt 0:00:00]} 13. Bxf6 {[%emt 0:00:05]} Nxf6 {[%emt 0:00:00]} 14. Nbd2 {[%emt 0:00:04]} Rd8 {[%emt 0:00:00]} 15. Rac1 {[%emt 0:00:30]} Bd7 {[%emt 0:00:00]} 16. Ne5 {[%emt 0:01:11]} Be8 {[%emt 0:00:00]} 17. e4 {[%emt 0:02:05]} Qa7 {[%emt 0:00:00]} 18. Nef3 {[%emt 0:04:56]} dxc4 {[%emt 0:00:00]} 19. Qxc4 {[%emt 0:03:27] [#]} c5 $1 {[%emt 0:00:00][%cal Rc5d4]} 20. e5 {[%emt 0:01:20]} ({Much worse is} 20. dxc5 Rac8 21. Qe2 Rxc5 $17 (21... Bxc5 22. e5 $15)) 20... Nd7 {[%emt 0:00:00]} 21. Ne4 {[%emt 0:02:11]} cxd4 {[%emt 0:00:00]} 22. Qc7 {[%emt 0:01:15] Inhibits Nb6.} Qb8 {[%emt 0:00:00]} 23. Nxd4 {[%emt 0:02:07]} Bf8 {[%emt 0:00:00] White must now prevent ...Qxc7.} 24. f4 {[%emt 0:01:31]} Qxc7 {[%emt 0:00:00] Weighted Error Value: White=0.07 (flawless) /Black=0.04 (flawless) .  Inaccurate:     	White=1     	Black=1      OK:         	White=6     	Black=11     Best:        	White=1     	---} 1/2-1/2

[Event "NY Presidents Day GM-A 2024"]
[Site "New York"]
[Date "2024.02.19"]
[Round "8.1"]
[White "Lu, Maximillian"]
[Black "Lenderman, Aleksandr"]
[Result "0-1"]
[ECO "A01"]
[WhiteElo "2371"]
[BlackElo "2521"]
[Annotator "TA"]
[PlyCount "86"]
[EventDate "2024.02.14"]
[EventType "tourn"]
[EventCountry "USA"]
[SourceTitle "playchess.com"]
[Source "ChessBase"]
[SourceQuality "1"]
[TimeControl "5400+30"]

{[%evp 9,86,13,14,7,13,-21,-2,-11,-12,-25,-20,-109,-94,-87,-65,-78,-56,-54,-39,-50,-54,-372,-354,-431,-450,-458,-460,-508,-373,-391,-399,-445,-404,-414,-427,-460,-451,-433,-430,-456,-466,-487,-480,-475,-383,-528,-535,-531,-539,-619,-457,-458,-430,-452,-451,-485,-467,-547,-537,-632,-635,-843,-831,-922,-940,-908,-912,-1245,-1244,-1749,-1435,-1296,-1143,-10114,-11803,-7893,-6391,-5365,-4380]} 1. b3 {[%emt 0:06:36]} e5 {[%emt 0:01:54]} 2. Bb2 {[%emt 0:00:02]} Nc6 {[%emt 0:00:05]} 3. e3 {[%emt 0:00:04]} Nf6 {[%emt 0:00:09]} 4. Nf3 {[%emt 0:00:12]} e4 {[%emt 0:00:48]} 5. Nd4 {[%emt 0:00:02]} Bc5 {[%emt 0:00:34]} 6. Nxc6 {[%emt 0:01:49]} dxc6 {[%emt 0:00:17]} 7. Nc3 {[%emt 0:03:06]} Qe7 {[%emt 0:02:01]} 8. d3 {[%emt 0:24:38] The position is equal.} Bf5 {[%emt 0:04:58]} 9. Be2 {[%emt 0:08:33]} O-O-O {[%emt 0:04:36]} 10. g4 {[%emt 0:02:53]} (10. d4 $11) 10... exd3 $17 {[%emt 0:00:38]} 11. cxd3 {[%emt 0:01:31]} Be6 {[%emt 0:01:48][%cal Oh7h5] Black is much more active. The white rooks are passive.} 12. Rg1 {[%emt 0:01:31]} Rhe8 {[%emt 0:04:05]} 13. Qc2 {[%emt 0:00:57]} Nd5 {[%emt 0:00:42][%cal Oc5e3] Threatens to win with ...Bxe3!} 14. O-O-O {[%emt 0:08:27]} Nb4 {[%emt 0:04:35]} 15. Qb1 {[%emt 0:04:10][%mdl 8192] [#]} ({Only move:} 15. Qd2 $15) 15... Bxb3 $1 $19 {[%emt 0:00:56][%mdl 512] ...Bxe3+ would now be deadly.} 16. d4 {[%emt 0:08:09]} (16. axb3 Bxe3+) 16... Bc2 {[%emt 0:01:42]} ({Less strong is} 16... Bxd1 17. Rxd1 Bb6 18. Qxh7 $19) 17. Qa1 {[%emt 0:02:13][%cal Oa2a3]} Bxd1 {[%emt 0:00:08]} 18. Rxd1 {[%emt 0:00:28][%cal Oa2a3]} Bd6 {[%emt 0:00:11]} 19. Qb1 {[%emt 0:00:00]} g6 {[%emt 0:00:16][%cal Oc6c5]} ({Don't play} 19... Bxh2 20. Qxh7 Rh8 21. Qf5+ Kb8 22. Bc4) 20. Bc4 {[%emt 0:00:39]} Bxh2 {[%emt 0:01:47]} 21. Rd2 {[%emt 0:03:53]} Nd5 {[%emt 0:02:04]} 22. Qd3 {[%emt 0:00:27]} Nb6 {[%emt 0:00:43]} 23. Bb3 {[%emt 0:00:16]} Bd6 {[%emt 0:01:08]} 24. Kb1 {[%emt 0:00:18]} Kb8 {[%emt 0:00:40]} 25. Qe2 {[%emt 0:00:24]} Bb4 {[%emt 0:01:38]} 26. Rd1 {[%emt 0:00:35]} Nd5 {[%emt 0:00:33]} 27. Na4 {[%emt 0:00:17]} f5 {[%emt 0:03:12] Black is clearly winning.} 28. gxf5 {[%emt 0:00:05]} gxf5 {[%emt 0:00:04]} 29. Bc2 {[%emt 0:00:06]} f4 {[%emt 0:01:36]} 30. e4 {[%emt 0:00:04]} Ba3 {[%emt 0:00:12]} 31. Qf3 {[%emt 0:02:49]} Bxb2 {[%emt 0:01:18]} 32. Kxb2 {[%emt 0:00:12]} Qb4+ {[%emt 0:01:53]} 33. Ka1 {[%emt 0:00:08]} Nb6 {[%emt 0:00:10]} 34. a3 {[%emt 0:00:24]} Qc4 {[%emt 0:00:36]} 35. Bb3 {[%emt 0:00:21]} Qa6 {[%emt 0:00:09]} 36. Nxb6 {[%emt 0:00:18]} Qxa3+ {[%emt 0:00:31]} 37. Kb1 {[%emt 0:00:02]} axb6 {[%emt 0:00:21]} 38. e5 {[%emt 0:00:07]} Qb4 {[%emt 0:00:29]} 39. Kc2 {[%emt 0:01:46]} Rxd4 {[%emt 0:00:07]} 40. e6 {[%emt 0:00:26]} Qc5+ {[%emt 0:00:26]} 41. Kb2 {[%emt 0:00:09]} Rxd1 {[%emt 0:00:18]} 42. Qxd1 {[%emt 0:00:02]} Qxf2+ {[%emt 0:00:07]} 43. Kb1 {[%emt 0:00:13]} Qc5 {[%emt 0:00:04] Black took control after the opening.   Weighted Error Value: White=0.55/Black=0.21 (precise) .  Loses game:     	White=1     	---        Mistake:       	White=1     	---        Inaccurate:     	White=3     	---        OK:         	White=7     	Black=15     Best:        	White=1     	---        Brilliant:      	---       	Black=1} 0-1